[Event "Titled Tuesday Blitz July 4 Early 2023"]
[White "Vaglio Munoz, Jaime"]
[Black "Politov, Pavel Y."]
[WhiteFideId "6500145"]
[BlackFideId "24110515"]
[WhiteElo "2300"]
[BlackElo "2066"]
[Result "1-0"]
[Round "8"]
[TimeControl "180+2"]
[Date "2023.07.04"]
[WhiteClock "0:01:23"]
[BlackClock "0:00:00"]
[Board "172"]

1. e4 {[%clk 0:03:00]}  c5 {[%clk 0:02:59]} 2. a3 {[%clk 0:03:00]}  d6 {[%clk 0:02:52]} 3. b4 {[%clk 0:03:00]}  cxb4 {[%clk 0:02:52]} 4. axb4 {[%clk 0:03:00]}  Nf6 {[%clk 0:02:44]} 5. d3 {[%clk 0:03:00]}  g6 {[%clk 0:02:43]} 6. Bb2 {[%clk 0:02:59]}  Bg7 {[%clk 0:02:43]} 7. c4 {[%clk 0:02:59]}  O-O {[%clk 0:02:40]} 8. h3 {[%clk 0:02:59]}  Nbd7 {[%clk 0:02:37]} 9. Nf3 {[%clk 0:02:58]}  Qb6 {[%clk 0:02:35]} 10. Qd2 {[%clk 0:02:45]}  e6 {[%clk 0:02:21]} 11. Be2 {[%clk 0:02:38]}  d5 {[%clk 0:02:10]} 12. c5 {[%clk 0:02:38]}  Qc7 {[%clk 0:02:01]} 13. e5 {[%clk 0:02:36]}  Ne8 {[%clk 0:01:58]} 14. d4 {[%clk 0:02:36]}  b6 {[%clk 0:01:40]} 15. O-O {[%clk 0:02:34]}  bxc5 {[%clk 0:01:39]} 16. bxc5 {[%clk 0:02:34]}  Bb7 {[%clk 0:01:39]} 17. Nc3 {[%clk 0:02:32]}  Bc6 {[%clk 0:01:38]} 18. Nb5 {[%clk 0:02:29]}  Qb7 {[%clk 0:01:32]} 19. Nd6 {[%clk 0:02:28]}  Nxd6 {[%clk 0:01:24]} 20. cxd6 {[%clk 0:02:29]}  Rab8 {[%clk 0:01:23]} 21. Bc3 {[%clk 0:02:28]}  Bb5 {[%clk 0:01:09]} 22. Rfb1 {[%clk 0:02:24]}  a6 {[%clk 0:01:08]} 23. Ra5 {[%clk 0:02:20]}  Qc6 {[%clk 0:01:04]} 24. Bb4 {[%clk 0:02:03]}  Rfc8 {[%clk 0:00:44]} 25. Bd1 {[%clk 0:01:58]}  Bc4 {[%clk 0:00:29]} 26. Rba1 {[%clk 0:01:54]}  Bb5 {[%clk 0:00:27]} 27. Kh2 {[%clk 0:01:53]}  Rb7 {[%clk 0:00:23]} 28. R5a2 {[%clk 0:01:47]}  Qb6 {[%clk 0:00:20]} 29. Ba5 {[%clk 0:01:45]}  Qa7 {[%clk 0:00:17]} 30. Bc7 {[%clk 0:01:43]}  Bc4 {[%clk 0:00:16]} 31. Rb2 {[%clk 0:01:38]}  Rxb2 {[%clk 0:00:14]} 32. Qxb2 {[%clk 0:01:39]}  Rxc7 {[%clk 0:00:14]} 33. dxc7 {[%clk 0:01:39]}  Qxc7 {[%clk 0:00:14]} 34. Rb1 {[%clk 0:01:34]}  h6 {[%clk 0:00:13]} 35. Qb7 {[%clk 0:01:33]}  Qxb7 {[%clk 0:00:08]} 36. Rxb7 {[%clk 0:01:33]}  Bb5 {[%clk 0:00:08]} 37. Be2 {[%clk 0:01:32]}  Bxe2 {[%clk 0:00:06]} 38. Rxd7 {[%clk 0:01:31]}  Bb5 {[%clk 0:00:06]} 39. Ra7 {[%clk 0:01:27]}  Bf8 {[%clk 0:00:05]} 40. Ra8 {[%clk 0:01:27]}  Kg7 {[%clk 0:00:05]} 41. h4 {[%clk 0:01:27]}  Be7 {[%clk 0:00:05]} 42. Ra7 {[%clk 0:01:26]}  Bb4 {[%clk 0:00:05]} 43. Kg3 {[%clk 0:01:25]}  Bc3 {[%clk 0:00:03]} 44. Kf4 {[%clk 0:01:24]}  Ba5 {[%clk 0:00:02]} 45. Ke3 {[%clk 0:01:23]}  Bb6 {[%clk 0:00:02]} 46. Rb7 {[%clk 0:01:23]}  Ba5 {[%clk 0:00:00]} 47. g4 {[%clk 0:01:23]} 1-0


[Site "https://www.chess.com"]

[Event "Titled Tuesday Blitz July 4 Early 2023"]
[White "laimis61"]
[Black "Suduvasachmatai"]
[WhiteElo "2239"]
[BlackElo "2094"]
[Result "1-0"]
[Round "8"]
[TimeControl "180+2"]
[Date "2023.07.04"]
[WhiteClock "0:00:17"]
[BlackClock "0:00:00"]
[Board "180"]

1. e4 {[%clk 0:03:00]}  c5 {[%clk 0:02:59]} 2. Nf3 {[%clk 0:02:59]}  Nc6 {[%clk 0:02:56]} 3. d4 {[%clk 0:02:59]}  cxd4 {[%clk 0:02:56]} 4. Nxd4 {[%clk 0:02:58]}  e6 {[%clk 0:02:53]} 5. Nc3 {[%clk 0:02:58]}  a6 {[%clk 0:02:51]} 6. Be3 {[%clk 0:02:55]}  Bb4 {[%clk 0:02:50]} 7. Bd3 {[%clk 0:02:52]}  Nge7 {[%clk 0:02:45]} 8. O-O {[%clk 0:02:51]}  O-O {[%clk 0:02:44]} 9. f4 {[%clk 0:02:48]}  d5 {[%clk 0:02:42]} 10. e5 {[%clk 0:02:44]}  Nxd4 {[%clk 0:02:40]} 11. Bxd4 {[%clk 0:02:43]}  Nc6 {[%clk 0:02:40]} 12. Ne2 {[%clk 0:02:42]}  Nxd4 {[%clk 0:02:32]} 13. Nxd4 {[%clk 0:02:42]}  Bc5 {[%clk 0:02:32]} 14. c3 {[%clk 0:02:33]}  Qb6 {[%clk 0:02:30]} 15. Kh1 {[%clk 0:02:23]}  g6 {[%clk 0:02:16]} 16. Nf3 {[%clk 0:02:17]}  Qxb2 {[%clk 0:02:13]} 17. Rc1 {[%clk 0:02:14]}  Bd7 {[%clk 0:02:07]} 18. Ng5 {[%clk 0:02:12]}  Be3 {[%clk 0:01:58]} 19. Rc2 {[%clk 0:02:11]}  Qb6 {[%clk 0:01:58]} 20. Qg4 {[%clk 0:01:59]}  f5 {[%clk 0:01:51]} 21. exf6 {[%clk 0:01:39]}  Rxf6 {[%clk 0:01:48]} 22. Qh4 {[%clk 0:01:39]}  h5 {[%clk 0:01:44]} 23. g4 {[%clk 0:01:25]}  Bxf4 {[%clk 0:01:29]} 24. Nh3 {[%clk 0:01:17]}  e5 {[%clk 0:01:26]} 25. gxh5 {[%clk 0:01:12]}  d4 {[%clk 0:00:54]} 26. Bc4+ {[%clk 0:00:40]}  Kf8 {[%clk 0:00:48]} 27. Nxf4 {[%clk 0:00:35]}  exf4 {[%clk 0:00:40]} 28. Rxf4 {[%clk 0:00:33]}  Qb1+ {[%clk 0:00:35]} 29. Bf1 {[%clk 0:00:29]}  Bc6+ {[%clk 0:00:27]} 30. Kg1 {[%clk 0:00:27]}  Rxf4 {[%clk 0:00:08]} 31. Qxf4+ {[%clk 0:00:26]}  Kg8 {[%clk 0:00:00]} 32. Rf2 {[%clk 0:00:17]} 1-0


[Site "https://www.chess.com"]

[Event "Titled Tuesday Blitz July 4 Early 2023"]
[White "Kiseleva, Arina"]
[Black "Horokoskii"]
[WhiteFideId "4164989"]
[WhiteElo "2181"]
[BlackElo "2073"]
[Result "1-0"]
[Round "8"]
[TimeControl "180+2"]
[Date "2023.07.04"]
[WhiteClock "0:00:04"]
[BlackClock "0:00:01"]
[Board "183"]

1. d4 {[%clk 0:03:00]}  Nf6 {[%clk 0:02:51]} 2. Nf3 {[%clk 0:02:59]}  g6 {[%clk 0:02:46]} 3. Nbd2 {[%clk 0:02:56]}  Bg7 {[%clk 0:02:45]} 4. e4 {[%clk 0:02:55]}  d6 {[%clk 0:02:46]} 5. c3 {[%clk 0:02:54]}  O-O {[%clk 0:02:44]} 6. Bd3 {[%clk 0:02:54]}  Nbd7 {[%clk 0:02:44]} 7. O-O {[%clk 0:02:53]}  c6 {[%clk 0:02:45]} 8. Re1 {[%clk 0:02:52]}  e5 {[%clk 0:02:45]} 9. a4 {[%clk 0:02:37]}  Qe7 {[%clk 0:02:31]} 10. Nf1 {[%clk 0:02:35]}  a5 {[%clk 0:02:25]} 11. h3 {[%clk 0:02:35]}  Nh5 {[%clk 0:02:21]} 12. N1h2 {[%clk 0:02:32]}  b6 {[%clk 0:02:12]} 13. Ng4 {[%clk 0:02:31]}  Nhf6 {[%clk 0:02:11]} 14. Qb3 {[%clk 0:02:17]}  Nxg4 {[%clk 0:02:07]} 15. hxg4 {[%clk 0:02:17]}  Rb8 {[%clk 0:02:03]} 16. g5 {[%clk 0:02:13]}  c5 {[%clk 0:01:55]} 17. Be3 {[%clk 0:01:49]}  Re8 {[%clk 0:01:41]} 18. Rad1 {[%clk 0:01:37]}  Nf8 {[%clk 0:01:34]} 19. Bc4 {[%clk 0:01:27]}  Bg4 {[%clk 0:01:30]} 20. dxe5 {[%clk 0:01:18]}  Bxe5 {[%clk 0:01:28]} 21. Rd2 {[%clk 0:01:14]}  Bg7 {[%clk 0:01:19]} 22. Red1 {[%clk 0:01:11]}  Be6 {[%clk 0:01:04]} 23. Bxe6 {[%clk 0:00:59]}  Qxe6 {[%clk 0:01:04]} 24. Qxe6 {[%clk 0:00:57]}  Rxe6 {[%clk 0:01:05]} 25. Rxd6 {[%clk 0:00:53]}  Rxe4 {[%clk 0:01:05]} 26. Rd8 {[%clk 0:00:52]}  Rxd8 {[%clk 0:01:02]} 27. Rxd8 {[%clk 0:00:51]}  Rxa4 {[%clk 0:01:02]} 28. Rb8 {[%clk 0:00:50]}  Ra1+ {[%clk 0:00:44]} 29. Kh2 {[%clk 0:00:49]}  f6 {[%clk 0:00:32]} 30. gxf6 {[%clk 0:00:42]}  Bxf6 {[%clk 0:00:33]} 31. Rxb6 {[%clk 0:00:41]}  Kf7 {[%clk 0:00:33]} 32. Bxc5 {[%clk 0:00:38]}  Nd7 {[%clk 0:00:33]} 33. Rb7 {[%clk 0:00:37]}  Ke6 {[%clk 0:00:33]} 34. Be3 {[%clk 0:00:36]}  a4 {[%clk 0:00:29]} 35. Ra7 {[%clk 0:00:34]}  a3 {[%clk 0:00:26]} 36. Rxa3 {[%clk 0:00:18]}  Rxa3 {[%clk 0:00:26]} 37. bxa3 {[%clk 0:00:19]}  Bxc3 {[%clk 0:00:26]} 38. Ng5+ {[%clk 0:00:15]}  Kf5 {[%clk 0:00:21]} 39. Nxh7 {[%clk 0:00:11]}  Ne5 {[%clk 0:00:18]} 40. f3 {[%clk 0:00:07]}  Nf7 {[%clk 0:00:15]} 41. g4+ {[%clk 0:00:04]}  Ke5 {[%clk 0:00:09]} 42. Ng5 {[%clk 0:00:05]}  Nd6 {[%clk 0:00:08]} 43. a4 {[%clk 0:00:03]}  Ba5 {[%clk 0:00:08]} 44. f4+ {[%clk 0:00:02]}  Kf6 {[%clk 0:00:06]} 45. Kg3 {[%clk 0:00:02]}  Nc4 {[%clk 0:00:06]} 46. Ne4+ {[%clk 0:00:02]}  Kf7 {[%clk 0:00:05]} 47. Bd4 {[%clk 0:00:03]}  Nd2 {[%clk 0:00:02]} 48. Nxd2 {[%clk 0:00:02]}  Bxd2 {[%clk 0:00:03]} 49. Bb6 {[%clk 0:00:03]}  g5 {[%clk 0:00:01]} 50. a5 {[%clk 0:00:03]}  gxf4+ {[%clk 0:00:02]} 51. Kf3 {[%clk 0:00:04]}  Ke6 {[%clk 0:00:02]} 52. a6 {[%clk 0:00:04]}  Kd7 {[%clk 0:00:01]} 53. a7 {[%clk 0:00:04]} 1-0


[Site "https://www.chess.com"]

[Event "Titled Tuesday Blitz July 4 Early 2023"]
[White "Vila Dupla, Aurelio"]
[Black "Semenova, Alina"]
[WhiteFideId "2203383"]
[BlackFideId "24113875"]
[WhiteElo "2166"]
[BlackElo "2058"]
[Result "1-0"]
[Round "8"]
[TimeControl "180+2"]
[Date "2023.07.04"]
[WhiteClock "0:00:21"]
[BlackClock "0:00:00"]
[Board "184"]

1. Nf3 {[%clk 0:03:00]}  Nf6 {[%clk 0:02:59]} 2. d4 {[%clk 0:03:00]}  g6 {[%clk 0:03:00]} 3. g3 {[%clk 0:02:58]}  d6 {[%clk 0:03:00]} 4. Bg2 {[%clk 0:02:58]}  Bg7 {[%clk 0:03:01]} 5. O-O {[%clk 0:02:59]}  O-O {[%clk 0:03:02]} 6. c4 {[%clk 0:02:59]}  Bf5 {[%clk 0:03:02]} 7. Nc3 {[%clk 0:02:52]}  Nc6 {[%clk 0:03:01]} 8. d5 {[%clk 0:02:52]}  Nb4 {[%clk 0:02:59]} 9. Nd4 {[%clk 0:02:51]}  Nd7 {[%clk 0:02:49]} 10. Nxf5 {[%clk 0:02:50]}  gxf5 {[%clk 0:02:50]} 11. Bd2 {[%clk 0:02:42]}  Ne5 {[%clk 0:02:34]} 12. Qb3 {[%clk 0:02:10]}  Na6 {[%clk 0:02:31]} 13. Nb5 {[%clk 0:02:06]}  Nc5 {[%clk 0:02:20]} 14. Qc2 {[%clk 0:02:06]}  a6 {[%clk 0:02:19]} 15. Na3 {[%clk 0:02:05]}  e6 {[%clk 0:01:32]} 16. Rab1 {[%clk 0:01:52]}  a5 {[%clk 0:01:25]} 17. Rfd1 {[%clk 0:01:39]}  Ng4 {[%clk 0:01:05]} 18. Bc3 {[%clk 0:01:32]}  Qg5 {[%clk 0:00:42]} 19. Nb5 {[%clk 0:01:20]}  Rac8 {[%clk 0:00:21]} 20. Bxa5 {[%clk 0:01:06]}  Ne4 {[%clk 0:00:20]} 21. Bxe4 {[%clk 0:00:56]}  fxe4 {[%clk 0:00:21]} 22. Qxe4 {[%clk 0:00:56]}  f5 {[%clk 0:00:20]} 23. Qxe6+ {[%clk 0:00:47]}  Kh8 {[%clk 0:00:19]} 24. h3 {[%clk 0:00:40]}  Rce8 {[%clk 0:00:07]} 25. Nxc7 {[%clk 0:00:40]}  Rxe6 {[%clk 0:00:06]} 26. Nxe6 {[%clk 0:00:41]}  Qh5 {[%clk 0:00:03]} 27. hxg4 {[%clk 0:00:38]}  fxg4 {[%clk 0:00:01]} 28. Nxf8 {[%clk 0:00:39]}  Bxf8 {[%clk 0:00:02]} 29. Bc3+ {[%clk 0:00:39]}  Bg7 {[%clk 0:00:02]} 30. Bxg7+ {[%clk 0:00:37]}  Kxg7 {[%clk 0:00:03]} 31. b4 {[%clk 0:00:33]}  Qf5 {[%clk 0:00:01]} 32. Rbc1 {[%clk 0:00:32]}  h5 {[%clk 0:00:02]} 33. c5 {[%clk 0:00:30]}  dxc5 {[%clk 0:00:02]} 34. bxc5 {[%clk 0:00:29]}  h4 {[%clk 0:00:02]} 35. Rc3 {[%clk 0:00:25]}  h3 {[%clk 0:00:00]} 36. Re3 {[%clk 0:00:21]} 1-0


[Site "https://www.chess.com"]

[Event "Titled Tuesday Blitz July 4 Early 2023"]
[White "Blackwhite017"]
[Black "Hartikainen, Jarmo"]
[BlackFideId "503134"]
[WhiteElo "2051"]
[BlackElo "2147"]
[Result "0-1"]
[Round "8"]
[TimeControl "180+2"]
[Date "2023.07.04"]
[WhiteClock "0:00:01"]
[BlackClock "0:00:06"]
[Board "185"]

1. e4 {[%clk 0:03:00]}  c5 {[%clk 0:03:00]} 2. Nf3 {[%clk 0:02:59]}  Nc6 {[%clk 0:03:00]} 3. d4 {[%clk 0:02:59]}  cxd4 {[%clk 0:03:00]} 4. Nxd4 {[%clk 0:03:00]}  Nf6 {[%clk 0:03:01]} 5. Nc3 {[%clk 0:03:00]}  d6 {[%clk 0:03:01]} 6. Bg5 {[%clk 0:02:58]}  Bd7 {[%clk 0:02:59]} 7. f4 {[%clk 0:02:56]}  a6 {[%clk 0:02:53]} 8. Qd2 {[%clk 0:02:52]}  Qc7 {[%clk 0:02:49]} 9. O-O-O {[%clk 0:02:50]}  e6 {[%clk 0:02:49]} 10. Bxf6 {[%clk 0:02:43]}  gxf6 {[%clk 0:02:49]} 11. f5 {[%clk 0:02:43]}  h5 {[%clk 0:02:49]} 12. Kb1 {[%clk 0:02:42]}  Ne5 {[%clk 0:02:17]} 13. Nf3 {[%clk 0:02:28]}  b5 {[%clk 0:02:04]} 14. Nxe5 {[%clk 0:02:19]}  dxe5 {[%clk 0:01:48]} 15. Be2 {[%clk 0:02:04]}  Bb4 {[%clk 0:01:42]} 16. Nd5 {[%clk 0:01:57]}  exd5 {[%clk 0:01:30]} 17. Qxb4 {[%clk 0:01:49]}  Rc8 {[%clk 0:01:22]} 18. Rd2 {[%clk 0:01:34]}  d4 {[%clk 0:01:20]} 19. Rhd1 {[%clk 0:01:25]}  Bc6 {[%clk 0:01:01]} 20. Bf3 {[%clk 0:01:18]}  Qe7 {[%clk 0:00:50]} 21. Qa5 {[%clk 0:01:00]}  Bb7 {[%clk 0:00:44]} 22. a4 {[%clk 0:00:52]}  bxa4 {[%clk 0:00:39]} 23. Qxa4+ {[%clk 0:00:41]}  Kf8 {[%clk 0:00:38]} 24. Rd3 {[%clk 0:00:28]}  Qc5 {[%clk 0:00:26]} 25. Rc1 {[%clk 0:00:19]}  Bc6 {[%clk 0:00:21]} 26. Qxa6 {[%clk 0:00:15]}  Bb5 {[%clk 0:00:21]} 27. Qa3 {[%clk 0:00:14]}  Bxd3 {[%clk 0:00:19]} 28. Qxc5+ {[%clk 0:00:11]}  Rxc5 {[%clk 0:00:19]} 29. cxd3 {[%clk 0:00:12]}  Rb5 {[%clk 0:00:17]} 30. Rc6 {[%clk 0:00:11]}  Kg7 {[%clk 0:00:16]} 31. Bd1 {[%clk 0:00:10]}  h4 {[%clk 0:00:15]} 32. h3 {[%clk 0:00:09]}  Kh6 {[%clk 0:00:13]} 33. Ba4 {[%clk 0:00:09]}  Rb4 {[%clk 0:00:11]} 34. b3 {[%clk 0:00:08]}  Kg5 {[%clk 0:00:12]} 35. Kc2 {[%clk 0:00:07]}  Kf4 {[%clk 0:00:11]} 36. Rxf6 {[%clk 0:00:06]}  Rg8 {[%clk 0:00:11]} 37. Rxf7 {[%clk 0:00:05]}  Rxg2+ {[%clk 0:00:10]} 38. Kd1 {[%clk 0:00:04]}  Rg1+ {[%clk 0:00:10]} 39. Ke2 {[%clk 0:00:04]}  Rg2+ {[%clk 0:00:11]} 40. Kf1 {[%clk 0:00:04]}  Rh2 {[%clk 0:00:11]} 41. Rh7 {[%clk 0:00:02]}  Rb7 {[%clk 0:00:10]} 42. Rxb7 {[%clk 0:00:02]}  Kf3 {[%clk 0:00:09]} 43. Rg7 {[%clk 0:00:02]}  Rd2 {[%clk 0:00:07]} 44. f6 {[%clk 0:00:01]}  Rd1# {[%clk 0:00:06]} 0-1


[Site "https://www.chess.com"]

[Event "Titled Tuesday Blitz July 4 Early 2023"]
[White "BebeBonito2022"]
[Black "Vargas, Mauricio"]
[BlackFideId "4404572"]
[WhiteElo "2138"]
[BlackElo "1878"]
[Result "1-0"]
[Round "8"]
[TimeControl "180+2"]
[Date "2023.07.04"]
[WhiteClock "0:00:10"]
[BlackClock "0:00:08"]
[Board "186"]

1. d4 {[%clk 0:03:00]}  d5 {[%clk 0:02:58]} 2. c4 {[%clk 0:03:01]}  c6 {[%clk 0:02:58]} 3. Nc3 {[%clk 0:03:01]}  e6 {[%clk 0:02:57]} 4. e3 {[%clk 0:03:01]}  Nf6 {[%clk 0:02:57]} 5. Nf3 {[%clk 0:03:01]}  Nbd7 {[%clk 0:02:58]} 6. Qc2 {[%clk 0:03:01]}  Bd6 {[%clk 0:02:57]} 7. b3 {[%clk 0:03:02]}  O-O {[%clk 0:02:55]} 8. Bb2 {[%clk 0:03:02]}  Nh5 {[%clk 0:02:33]} 9. Bd3 {[%clk 0:02:44]}  f5 {[%clk 0:02:33]} 10. O-O-O {[%clk 0:02:40]}  a6 {[%clk 0:02:31]} 11. g4 {[%clk 0:02:39]}  Nhf6 {[%clk 0:02:28]} 12. gxf5 {[%clk 0:02:38]}  e5 {[%clk 0:02:19]} 13. dxe5 {[%clk 0:02:33]}  Nxe5 {[%clk 0:02:19]} 14. Nxe5 {[%clk 0:02:33]}  Bxe5 {[%clk 0:02:19]} 15. f4 {[%clk 0:02:21]}  Bc7 {[%clk 0:02:10]} 16. Rhg1 {[%clk 0:02:15]}  Kh8 {[%clk 0:02:08]} 17. cxd5 {[%clk 0:02:07]}  cxd5 {[%clk 0:02:04]} 18. Bc4 {[%clk 0:01:49]}  dxc4 {[%clk 0:01:58]} 19. Rxd8 {[%clk 0:01:48]}  Rxd8 {[%clk 0:01:59]} 20. bxc4 {[%clk 0:01:29]}  Bb6 {[%clk 0:01:58]} 21. Rxg7 {[%clk 0:01:11]}  Bxe3+ {[%clk 0:01:56]} 22. Kb1 {[%clk 0:01:11]}  Kxg7 {[%clk 0:01:55]} 23. Nd5 {[%clk 0:01:11]}  Rf8 {[%clk 0:01:51]} 24. Qc3 {[%clk 0:00:50]}  Bxf5+ {[%clk 0:01:46]} 25. Ka1 {[%clk 0:00:51]}  Bxf4 {[%clk 0:01:13]} 26. Nxf4 {[%clk 0:00:36]}  Rae8 {[%clk 0:01:08]} 27. Nh5+ {[%clk 0:00:17]}  Kg8 {[%clk 0:00:50]} 28. Nxf6+ {[%clk 0:00:18]}  Rxf6 {[%clk 0:00:49]} 29. Qxf6 {[%clk 0:00:14]}  Re1+ {[%clk 0:00:49]} 30. Bc1 {[%clk 0:00:15]}  Rxc1+ {[%clk 0:00:48]} 31. Kb2 {[%clk 0:00:15]}  Rb1+ {[%clk 0:00:43]} 32. Kc3 {[%clk 0:00:14]}  Bg6 {[%clk 0:00:43]} 33. Qd8+ {[%clk 0:00:12]}  Kg7 {[%clk 0:00:41]} 34. Qc7+ {[%clk 0:00:11]}  Kh6 {[%clk 0:00:30]} 35. h4 {[%clk 0:00:10]}  Rc1+ {[%clk 0:00:26]} 36. Kd4 {[%clk 0:00:10]}  Rd1+ {[%clk 0:00:17]} 37. Kc5 {[%clk 0:00:10]}  Rb1 {[%clk 0:00:14]} 38. Qf4+ {[%clk 0:00:08]}  Kg7 {[%clk 0:00:13]} 39. Qg5 {[%clk 0:00:07]}  b6+ {[%clk 0:00:09]} 40. Kc6 {[%clk 0:00:06]}  Rb5 {[%clk 0:00:06]} 41. cxb5 {[%clk 0:00:05]}  axb5 {[%clk 0:00:07]} 42. Kxb5 {[%clk 0:00:05]}  Kf7 {[%clk 0:00:06]} 43. h5 {[%clk 0:00:05]}  Kg7 {[%clk 0:00:06]} 44. hxg6 {[%clk 0:00:05]}  hxg6 {[%clk 0:00:06]} 45. Kxb6 {[%clk 0:00:05]}  Kf7 {[%clk 0:00:07]} 46. a4 {[%clk 0:00:06]}  Kg7 {[%clk 0:00:07]} 47. a5 {[%clk 0:00:07]}  Kh8 {[%clk 0:00:07]} 48. a6 {[%clk 0:00:08]}  Kh7 {[%clk 0:00:06]} 49. a7 {[%clk 0:00:09]}  Kh8 {[%clk 0:00:07]} 50. a8=Q+ {[%clk 0:00:09]}  Kh7 {[%clk 0:00:08]} 51. Qa7+ {[%clk 0:00:09]}  Kg8 {[%clk 0:00:08]} 52. Qd8# {[%clk 0:00:10]} 1-0


[Site "https://www.chess.com"]

[Event "Titled Tuesday Blitz July 4 Early 2023"]
[White "Lohani, Sujana"]
[Black "Ho, In Hei Henry"]
[WhiteFideId "12311987"]
[BlackFideId "6002552"]
[WhiteElo "1924"]
[BlackElo "2059"]
[Result "0-1"]
[Round "8"]
[TimeControl "180+2"]
[Date "2023.07.04"]
[WhiteClock "0:00:00"]
[BlackClock "0:01:15"]
[Board "187"]

1. d4 {[%clk 0:01:46]}  d5 {[%clk 0:02:59]} 2. Nf3 {[%clk 0:01:46]}  Nf6 {[%clk 0:02:59]} 3. c4 {[%clk 0:01:47]}  c6 {[%clk 0:02:58]} 4. e3 {[%clk 0:01:43]}  e6 {[%clk 0:02:59]} 5. Nc3 {[%clk 0:01:43]}  Bd6 {[%clk 0:02:59]} 6. Qc2 {[%clk 0:01:43]}  O-O {[%clk 0:02:58]} 7. h3 {[%clk 0:01:40]}  Re8 {[%clk 0:02:59]} 8. Bd2 {[%clk 0:01:37]}  Nbd7 {[%clk 0:02:59]} 9. O-O-O {[%clk 0:01:36]}  Rb8 {[%clk 0:02:56]} 10. g4 {[%clk 0:01:35]}  b5 {[%clk 0:02:55]} 11. cxd5 {[%clk 0:01:35]}  cxd5 {[%clk 0:02:53]} 12. Bxb5 {[%clk 0:01:30]}  Qb6 {[%clk 0:02:42]} 13. Bd3 {[%clk 0:01:25]}  e5 {[%clk 0:02:32]} 14. g5 {[%clk 0:01:20]}  e4 {[%clk 0:02:29]} 15. gxf6 {[%clk 0:01:15]}  exd3 {[%clk 0:02:28]} 16. Qb1 {[%clk 0:01:13]}  Nxf6 {[%clk 0:02:23]} 17. Be1 {[%clk 0:01:09]}  Bb4 {[%clk 0:02:15]} 18. Rxd3 {[%clk 0:01:08]}  Bf5 {[%clk 0:02:13]} 19. Rg1 {[%clk 0:00:51]}  Rec8 {[%clk 0:01:54]} 20. Ne5 {[%clk 0:00:50]}  Bxc3 {[%clk 0:01:45]} 21. Bxc3 {[%clk 0:00:49]}  Bxd3 {[%clk 0:01:41]} 22. Nxd3 {[%clk 0:00:44]}  Rxc3+ {[%clk 0:01:36]} 23. Kd2 {[%clk 0:00:30]}  Ne4+ {[%clk 0:01:29]} 24. Ke2 {[%clk 0:00:27]}  Qb5 {[%clk 0:01:25]} 25. Rd1 {[%clk 0:00:23]}  Qc4 {[%clk 0:01:17]} 26. bxc3 {[%clk 0:00:11]}  Rxb1 {[%clk 0:01:14]} 27. Rxb1 {[%clk 0:00:00]}  Nxc3+ {[%clk 0:01:15]} 0-1


[Site "https://www.chess.com"]

[Event "Titled Tuesday Blitz July 4 Early 2023"]
[White "HeinichessPY"]
[Black "Vazquez Espino, Uriel"]
[BlackFideId "5119138"]
[WhiteElo "2132"]
[BlackElo "2336"]
[Result "0-1"]
[Round "8"]
[TimeControl "180+2"]
[Date "2023.07.04"]
[WhiteClock "0:00:00"]
[BlackClock "0:00:25"]
[Board "188"]

1. e4 {[%clk 0:03:00]}  c5 {[%clk 0:02:59]} 2. Nf3 {[%clk 0:03:00]}  e6 {[%clk 0:03:00]} 3. d4 {[%clk 0:02:59]}  cxd4 {[%clk 0:03:01]} 4. Nxd4 {[%clk 0:03:00]}  Nc6 {[%clk 0:03:01]} 5. Nc3 {[%clk 0:03:00]}  Qc7 {[%clk 0:03:01]} 6. Nxc6 {[%clk 0:02:58]}  bxc6 {[%clk 0:03:01]} 7. Bd3 {[%clk 0:02:57]}  d5 {[%clk 0:03:00]} 8. O-O {[%clk 0:02:57]}  Nf6 {[%clk 0:02:59]} 9. Qe2 {[%clk 0:02:57]}  Be7 {[%clk 0:02:52]} 10. Bg5 {[%clk 0:02:56]}  O-O {[%clk 0:02:50]} 11. e5 {[%clk 0:02:48]}  Ne8 {[%clk 0:02:46]} 12. Qh5 {[%clk 0:02:27]}  g6 {[%clk 0:02:44]} 13. Qh6 {[%clk 0:02:25]}  Bxg5 {[%clk 0:02:36]} 14. Qxg5 {[%clk 0:02:26]}  c5 {[%clk 0:02:24]} 15. Rae1 {[%clk 0:02:14]}  c4 {[%clk 0:02:17]} 16. Be2 {[%clk 0:02:13]}  Rb8 {[%clk 0:02:17]} 17. Bd1 {[%clk 0:01:41]}  Rxb2 {[%clk 0:02:12]} 18. Ne2 {[%clk 0:01:28]}  f6 {[%clk 0:02:01]} 19. exf6 {[%clk 0:01:26]}  Nxf6 {[%clk 0:02:00]} 20. Nd4 {[%clk 0:01:19]}  Ne4 {[%clk 0:01:51]} 21. Qc1 {[%clk 0:01:14]}  Rb6 {[%clk 0:01:43]} 22. Bf3 {[%clk 0:01:05]}  Nc5 {[%clk 0:01:31]} 23. Qg5 {[%clk 0:00:42]}  Qf4 {[%clk 0:01:23]} 24. Qxf4 {[%clk 0:00:26]}  Rxf4 {[%clk 0:01:24]} 25. c3 {[%clk 0:00:27]}  Na4 {[%clk 0:01:19]} 26. Re3 {[%clk 0:00:26]}  Nxc3 {[%clk 0:01:12]} 27. Nxe6 {[%clk 0:00:23]}  Bxe6 {[%clk 0:01:08]} 28. Rxc3 {[%clk 0:00:23]}  d4 {[%clk 0:01:04]} 29. Rcc1 {[%clk 0:00:24]}  c3 {[%clk 0:01:01]} 30. Rfe1 {[%clk 0:00:24]}  Bf7 {[%clk 0:00:48]} 31. Re4 {[%clk 0:00:21]}  Rxe4 {[%clk 0:00:40]} 32. Bxe4 {[%clk 0:00:22]}  Rb2 {[%clk 0:00:39]} 33. Bd3 {[%clk 0:00:20]}  Bxa2 {[%clk 0:00:34]} 34. Re1 {[%clk 0:00:19]}  Kf7 {[%clk 0:00:32]} 35. f3 {[%clk 0:00:18]}  Rd2 {[%clk 0:00:31]} 36. Be4 {[%clk 0:00:17]}  d3 {[%clk 0:00:27]} 37. Ra1 {[%clk 0:00:00]}  c2 {[%clk 0:00:25]} 0-1


[Site "https://www.chess.com"]

[Event "Titled Tuesday Blitz July 4 Early 2023"]
[White "Nihal Sarin"]
[Black "Svane, Rasmus"]
[WhiteFideId "25092340"]
[BlackFideId "4657101"]
[WhiteElo "3122"]
[BlackElo "2924"]
[Result "1/2-1/2"]
[Round "9"]
[TimeControl "180+2"]
[Date "2023.07.04"]
[WhiteClock "0:01:03"]
[BlackClock "0:01:04"]
[Board "5"]

1. Nf3 {[%clk 0:03:00]}  d5 {[%clk 0:02:59]} 2. e3 {[%clk 0:03:00]}  Nf6 {[%clk 0:02:59]} 3. b3 {[%clk 0:03:01]}  Bg4 {[%clk 0:02:56]} 4. h3 {[%clk 0:03:00]}  Bxf3 {[%clk 0:02:50]} 5. Qxf3 {[%clk 0:03:01]}  e5 {[%clk 0:02:51]} 6. Bb2 {[%clk 0:03:01]}  Bd6 {[%clk 0:02:50]} 7. c4 {[%clk 0:03:00]}  c6 {[%clk 0:02:42]} 8. cxd5 {[%clk 0:03:00]}  cxd5 {[%clk 0:02:36]} 9. Nc3 {[%clk 0:02:57]}  e4 {[%clk 0:02:20]} 10. Qe2 {[%clk 0:02:23]}  Nc6 {[%clk 0:02:16]} 11. d4 {[%clk 0:02:02]}  O-O {[%clk 0:02:10]} 12. g3 {[%clk 0:02:01]}  Rc8 {[%clk 0:02:06]} 13. Bg2 {[%clk 0:01:42]}  Nb4 {[%clk 0:02:06]} 14. O-O {[%clk 0:01:42]}  Nd3 {[%clk 0:02:06]} 15. Nxd5 {[%clk 0:01:29]}  Nxd5 {[%clk 0:01:54]} 16. Bxe4 {[%clk 0:01:29]}  N3b4 {[%clk 0:01:41]} 17. a3 {[%clk 0:01:29]}  f5 {[%clk 0:01:41]} 18. Bf3 {[%clk 0:01:21]}  Rc2 {[%clk 0:01:17]} 19. Bxd5+ {[%clk 0:01:21]}  Kh8 {[%clk 0:01:18]} 20. Qd1 {[%clk 0:01:19]}  Rxb2 {[%clk 0:01:12]} 21. axb4 {[%clk 0:01:18]}  Bxg3 {[%clk 0:01:12]} 22. fxg3 {[%clk 0:01:01]}  Qxd5 {[%clk 0:01:12]} 23. Qf3 {[%clk 0:01:02]}  Qxf3 {[%clk 0:01:09]} 24. Rxf3 {[%clk 0:01:03]}  Rxb3 {[%clk 0:01:09]} 25. Rxa7 {[%clk 0:01:00]}  Rxb4 {[%clk 0:01:08]} 26. Rxf5 {[%clk 0:01:00]}  Rb1+ {[%clk 0:01:03]} 27. Kg2 {[%clk 0:01:01]}  Rb2+ {[%clk 0:01:03]} 28. Kg1 {[%clk 0:01:01]}  Rb1+ {[%clk 0:01:03]} 29. Kg2 {[%clk 0:01:02]}  Rb2+ {[%clk 0:01:04]} 30. Kg1 {[%clk 0:01:03]}  Rb1+ {[%clk 0:01:04]} 1/2-1/2


[Site "https://www.chess.com"]